Cogmind - Beta 12 @@@ ROGUE MODE // 2023.03.26 @ 02:03:42 Player: Rainynight Result: Destroyed by S-27 Virus with Autogun Performance ------------- Evolutions (3) 1500 Regions Visited (6) 1200 Robots Destroyed (0) 0 Value Destroyed (0) 0 Prototype IDs (0) 0 Alien Tech Used (0) 0 Bonus (-6506) -6506 TOTAL SCORE: -3806 Bonus ------- Devolution -15000 Fragile Parts 750 No Salvage 750 Pure Core 1500 Scavenger 3000 Simple Hacker 910 Trapped 750 Pacifist 834 Cogmind --------- Core Integrity 0/800 Matter 300/300 Energy 99/100 System Corruption 6% Temperature Cool (0) Movement Core (50) Location -7/Factory Parts ------- > --- POWER (2) -------- (None) > --- PROPULSION (4) --- (None) > --- UTILITY (6) ------ (None) > --- WEAPON (5) ------- (None) > --- INVENTORY (0) ---- (None) Peak State ------------ None Favorites ----------- Power None Propulsion None Utility None Weapon None Build | -11 -10 -9 -8 -7 -7 -7 ------- Run | Jun Mat Mat Mat Fac Was Fac Slots Evolved -3 | . . -1 -1 -1 . . Power . | . . . . . . . Propulsion . | . . . . . . . Utility -2 | . . -1 -1 . . . Weapon -1 | . . . . -1 . . Parts Attached . | . . . . . . . Power . | . . . . . . . Engine . | . . . . . . . Core . | . . . . . . . Reactor . | . . . . . . . Propulsion . | . . . . . . . Treads . | . . . . . . . Leg . | . . . . . . . Wheel . | . . . . . . . Hover . | . . . . . . . Flight . | . . . . . . . Utility . | . . . . . . . Device . | . . . . . . . Storage . | . . . . . . . Processor . | . . . . . . . Hackware . | . . . . . . . Protection . | . . . . . . . Artifact . | . . . . . . . Weapon . | . . . . . . . Energy Gun . | . . . . . . . Energy Cannon . | . . . . . . . Ballistic Gun . | . . . . . . . Ballistic Cannon . | . . . . . . . Launcher . | . . . . . . . Special Weapon . | . . . . . . . Impact Weapon . | . . . . . . . Slashing Weapon . | . . . . . . . Piercing Weapon . | . . . . . . . Special Melee Weapon . | . . . . . . . Unidentified Prototypes . | . . . . . . . Parts Lost . | . . . . . . . Power . | . . . . . . . Propulsion . | . . . . . . . Utility . | . . . . . . . Weapon . | . . . . . . . Highest Loss Streak . | . . . . . . . To Critical Strikes . | . . . . . . . Average Slot Usage (%) . | . . . . . . . Naked Turns 576 | . 62 55 66 163 31 199 Heaviest Build . | . . . . . . . Greatest Support 3 | 3 3 3 3 3 3 3 Greatest Overweight (x) . | . . . . . . . Average Overweight (x) . | . . . . . . . Largest Inventory Capacity . | . . . . . . . Average Capacity . | . . . . . . . Most Carried . | . . . . . . . Average Carried . | . . . . . . . Final Capacity . | . . . . . . . Final Carried . | . . . . . . . Class Distribution -------------------- 100% | Mutant Dominant Class ---------------- Mutant | -10/Materials Mutant | -9/Materials Mutant | -8/Materials Mutant | -7/Factory Mutant | -7/Waste Mutant | -7/Factory Resources | -11 -10 -9 -8 -7 -7 -7 ----------- Run | Jun Mat Mat Mat Fac Was Fac Matter Collected 153 | 101 . . 52 . . . Remotely . | . . . . . . . Salvage Created . | . . . . . . . Parts . | . . . . . . . Haulers Intercepted . | . . . . . . . Recyclers Shooed . | . . . . . . . Parts Field Recycled . | . . . . . . . Retrieved Matter . | . . . . . . . Parts Self-Destructed . | . . . . . . . Prevented . | . . . . . . . Kills | -11 -10 -9 -8 -7 -7 -7 ------- Run | Jun Mat Mat Mat Fac Was Fac Combat Hostiles Destroyed . | . . . . . . . Classes Destroyed . | . . . . . . . Best Kill Streak . | . . . . . . . Combat Bots Only . | . . . . . . . Max Kills in Single Turn . | . . . . . . . Gunslinging . | . . . . . . . Exploded . | . . . . . . . Melee . | . . . . . . . Uniques/NPCs Destroyed . | . . . . . . . Combat | -11 -10 -9 -8 -7 -7 -7 -------- Run | Jun Mat Mat Mat Fac Was Fac Damage Taken 1247 | . 60 305 82 481 . 319 Core 1247 | . 60 305 82 481 . 319 Absorbed by Shields 12 | . . . . 12 . . Core Remaining (%) 85 | 100 92 61 89 . . . Volleys Fired . | . . . . . . . Largest . | . . . . . . . Hottest . | . . . . . . . Shots Fired . | . . . . . . . Gun . | . . . . . . . Cannon . | . . . . . . . Launcher . | . . . . . . . Special . | . . . . . . . Kinetic . | . . . . . . . Thermal . | . . . . . . . Explosive . | . . . . . . . Electromagnetic . | . . . . . . . Robot Hit Streak . | . . . . . . . Robot Miss Streak . | . . . . . . . Penetration Max . | . . . . . . . Secondary Targets . | . . . . . . . Shots Hit Robots . | . . . . . . . Core Hits 3 | . . 2 . . . 1 Critical Kills . | . . . . . . . Critical Parts Destroyed . | . . . . . . . Critical Strikes . | . . . . . . . Melee Attacks . | . . . . . . . Impact . | . . . . . . . Slashing . | . . . . . . . Piercing . | . . . . . . . Sneak Attacks . | . . . . . . . Combat Hostiles . | . . . . . . . Follow-up Attacks . | . . . . . . . Damage Inflicted 33 | . . 26 . . . 7 Guns . | . . . . . . . Cannons . | . . . . . . . Explosions . | . . . . . . . Melee . | . . . . . . . Ramming 33 | . . 26 . . . 7 Kinetic . | . . . . . . . Thermal . | . . . . . . . Explosive . | . . . . . . . Electromagnetic . | . . . . . . . Impact . | . . . . . . . Slashing . | . . . . . . . Piercing . | . . . . . . . Highest Corruption 6 | . 4 . 1 . 5 6 Average Corruption 4 | . 4 . 1 . 5 5 Corruption Purged . | . . . . . . . Corruption Blocked . | . . . . . . . Effects 5 | . . . . . 1 4 Message Errors 3 | . . . . . . 3 Data Loss (major) 2 | . . . . . 1 1 Overload Shots . | . . . . . . . Overflow Damage . | . . . . . . . Projectiles . | . . . . . . . Explosions . | . . . . . . . Melee . | . . . . . . . Knockbacks . | . . . . . . . Impact . | . . . . . . . Kinetic . | . . . . . . . Secondary . | . . . . . . . Self-Inflicted Damage 14 | . . 11 . . . 3 Shots . | . . . . . . . Rammed 14 | . . 12 . . . 2 Targets Rammed 14 | . . 12 . . . 2 Kicked . | . . . . . . . Crushed . | . . . . . . . Highest Temperature 7 | . 7 . . . . . Average Temperature 7 | . 7 . . . . . Received Heat Transfer 167 | . 39 42 9 26 . 51 Siege Activations . | . . . . . . . Robots Corrupted . | . . . . . . . Combat Hostiles . | . . . . . . . Parts Fried . | . . . . . . . Impact Corruptions . | . . . . . . . Robots Melted . | . . . . . . . Combat Hostiles . | . . . . . . . Parts Melted . | . . . . . . . Heat Transferred . | . . . . . . . Parts Sabotaged . | . . . . . . . Parts Stolen . | . . . . . . . Parts Stripped . | . . . . . . . Power Chain Reactions . | . . . . . . . Missiles Intercepted . | . . . . . . . Alert | -11 -10 -9 -8 -7 -7 -7 ------- Run | Jun Mat Mat Mat Fac Was Fac Peak Influence 174 | . 62 60 91 116 40 174 Initial 41 | . . 26 31 41 40 28 Average 60 | . 41 33 69 80 40 60 Maximum Alert Level . | . . . . . . . Low Security (%) 100 | 100 100 100 100 100 100 100 Level 1 . | . . . . . . . Level 2 . | . . . . . . . Level 3 . | . . . . . . . Level 4 . | . . . . . . . Level 5 . | . . . . . . . High Security . | . . . . . . . Max Security . | . . . . . . . Squads Dispatched 9 | . 1 2 2 1 . 3 Investigation 4 | . . . 1 1 . 2 Extermination . | . . . . . . . Reinforcement 5 | . 1 2 1 . . 1 Assault . | . . . . . . . Garrison . | . . . . . . . Intercept . | . . . . . . . Searches Triggered . | . . . . . . . Construction Impeded . | . . . . . . . Haulers Reinforced . | . . . . . . . Active Scanning Responses . | . . . . . . . Cargo Convoy Interrupts . | . . . . . . . Stealth | -11 -10 -9 -8 -7 -7 -7 --------- Run | Jun Mat Mat Mat Fac Was Fac Distress Signals 1 | . 1 . . . . . Communications Jammed . | . . . . . . . Distress Signals . | . . . . . . . Times Spotted 44 | . 6 11 8 4 3 12 Peak Tracking Total 9 | . 6 9 6 3 3 7 Tactical Retreats 5 | . . 1 . 1 . 3 Traps | -11 -10 -9 -8 -7 -7 -7 ------- Run | Jun Mat Mat Mat Fac Was Fac Traps Triggered 16 | . 3 2 2 6 . 3 Indirectly . | . . . . . . . Trap Hack Attempts . | . . . . . . . Triggered . | . . . . . . . Disarmed . | . . . . . . . Reprogrammed . | . . . . . . . Reused . | . . . . . . . Traps Extracted . | . . . . . . . Installed . | . . . . . . . Triggered . | . . . . . . . Machines | -11 -10 -9 -8 -7 -7 -7 ---------- Run | Jun Mat Mat Mat Fac Was Fac Machines Disabled . | . . . . . . . Max in Single Turn . | . . . . . . . Machines Repaired . | . . . . . . . Machines Sabotaged . | . . . . . . . Overloaded Fab Kills . | . . . . . . . Hacking | -11 -10 -9 -8 -7 -7 -7 --------- Run | Jun Mat Mat Mat Fac Was Fac Machines Accessed 6 | . 1 1 1 . . 3 Terminals 6 | . 1 1 1 . . 3 Fabricators . | . . . . . . . Repair Stations . | . . . . . . . Recycling Units . | . . . . . . . Scanalyzers . | . . . . . . . Garrison Access . | . . . . . . . Total Hacks 15 | . 2 1 4 . . 8 Successful 8 | . 2 1 1 . . 4 Failed 7 | . . . 3 . . 4 Catastrophic 2 | . . . . . . 2 Database Lockouts . | . . . . . . . Manual . | . . . . . . . Terminals 15 | . 2 1 4 . . 8 Fabricators . | . . . . . . . Repair Stations . | . . . . . . . Recycling Units . | . . . . . . . Scanalyzers . | . . . . . . . Garrison Access . | . . . . . . . Terminal Hacks 8 | . 2 1 1 . . 4 Level Access Points 1 | . . . . . . 1 Emergency Access Points 1 | . . . . . . 1 Terminal Index 1 | . . . . . . 1 Dispatch Records 1 | . . 1 . . . . Security Status 1 | . 1 . . . . . Surveillance Status 1 | . 1 . . . . . Patrol Status 1 | . . . 1 . . . Investigation Status 1 | . . . . . . 1 Fabricator Hacks . | . . . . . . . Repair Station Hacks . | . . . . . . . Recycling Unit Hacks . | . . . . . . . Scanalyzer . | . . . . . . . Garrison Access Hacks . | . . . . . . . Unauthorized Hacks . | . . . . . . . Terminals . | . . . . . . . Fabricators . | . . . . . . . Repair Stations . | . . . . . . . Recycling Units . | . . . . . . . Scanalyzers . | . . . . . . . Garrison Access . | . . . . . . . Data Cores Recovered . | . . . . . . . Used . | . . . . . . . Hacking Detections 5 | . 1 . 1 . . 3 Full Trace Events 2 | . . . . . . 2 Feedback Events . | . . . . . . . Feedback Blocked . | . . . . . . . Robot Schematics Acquired . | . . . . . . . Robots Built . | . . . . . . . Authchips . | . . . . . . . Time . | . . . . . . . Total Robot Build Rating . | . . . . . . . Part Schematics Acquired . | . . . . . . . Parts Built . | . . . . . . . Authchips . | . . . . . . . Time . | . . . . . . . Total Part Build Rating . | . . . . . . . Parts Repaired . | . . . . . . . Time . | . . . . . . . Parts Recycled . | . . . . . . . Recycled Matter . | . . . . . . . Retrieved Matter . | . . . . . . . Retrieved Components . | . . . . . . . Parts Scanalyzed . | . . . . . . . Part Schematics Acquired . | . . . . . . . Parts Damaged . | . . . . . . . Bothacking | -11 -10 -9 -8 -7 -7 -7 ------------ Run | Jun Mat Mat Mat Fac Was Fac Used RIF Installer . | . . . . . . . Robots Hacked . | . . . . . . . Non-combat . | . . . . . . . Combat . | . . . . . . . Robot Hacks Applied . | . . . . . . . Relay Couplers Released . | . . . . . . . Fabnet Peak Effective % . | . . . . . . . Robots Rewired . | . . . . . . . Allies Hacked . | . . . . . . . Hacks Repelled . | . . . . . . . Allies | -11 -10 -9 -8 -7 -7 -7 -------- Run | Jun Mat Mat Mat Fac Was Fac Total Allies . | . . . . . . . Largest Group . | . . . . . . . Highest-Rated Group . | . . . . . . . Highest-Rated Ally . | . . . . . . . Total Orders . | . . . . . . . Ally Attacks . | . . . . . . . Total Damage . | . . . . . . . Kills . | . . . . . . . Allies Corrupted . | . . . . . . . Allies Melted . | . . . . . . . Intel | -11 -10 -9 -8 -7 -7 -7 ------- Run | Jun Mat Mat Mat Fac Was Fac Robot Analysis Total . | . . . . . . . Derelict Logs Recovered . | . . . . . . . Drone Launches . | . . . . . . . Drone Recoveries . | . . . . . . . Exploration | -11 -10 -9 -8 -7 -7 -7 ------------- Run | Jun Mat Mat Mat Fac Was Fac Turns Passed 585 | 9 62 55 66 163 31 199 Spaces Moved 1073 | 18 117 86 130 270 61 391 Core 1073 | 18 117 86 130 270 61 391 Treads . | . . . . . . . Legs . | . . . . . . . Wheels . | . . . . . . . Hover . | . . . . . . . Flight . | . . . . . . . Fastest Speed 50 | 50 50 50 50 50 50 50 Average Speed 50 | 50 50 50 50 50 50 50 Slowest Speed 50 | 50 50 50 50 50 50 50 Overloaded Moves . | . . . . . . . Propulsion Burnouts . | . . . . . . . Robots Hopped . | . . . . . . . Cave-ins Triggered . | . . . . . . . Exploration Rate (%) 23 | 3 32 13 25 11 65 13 Regions Visited 6 Branch Regions . Pre-discovered Areas . | . . . . . . . Known Exits Taken . | . . . . . . . Unknown Exits Taken 4 | 1 1 1 1 . . . Scrap Searched . | . . . . . . . Spaces Dug . | . . . . . . . Terrain Destroyed . | . . . . . . . Melee . | . . . . . . . Projectile . | . . . . . . . AOE . | . . . . . . . Terrain Rammed . | . . . . . . . Walls Destroyed . | . . . . . . . Machines Disabled . | . . . . . . . Actions | -11 -10 -9 -8 -7 -7 -7 --------- Run | Jun Mat Mat Mat Fac Was Fac Total 1115 | 17 119 97 130 298 60 394 Wait 5 | . 3 . 1 . . 1 Move 1068 | 17 116 85 129 270 60 391 Hop . | . . . . . . . Pick Up . | . . . . . . . Fast Attach . | . . . . . . . Attach . | . . . . . . . Detach . | . . . . . . . Swap . | . . . . . . . Drop . | . . . . . . . Fire . | . . . . . . . Melee . | . . . . . . . Ram 14 | . . 12 . . . 2 Kick . | . . . . . . . Crush . | . . . . . . . Escape Stasis 28 | . . . . 28 . . Rewire . | . . . . . . . Trap . | . . . . . . . Miscellaneous . | . . . . . . . Route ------- -11/Junkyard -10/Materials -9/Materials -8/Materials -7/Factory -7/Waste -7/Factory (discovered 4 exits: Fac x4) History --------- Turn | Location | Event 3 | -11/Junkyard | Discovered new exit (range 14) 10 | -11/Junkyard | Entered Materials 64 | -10/Materials | Discovered new exit (range 16) 72 | -10/Materials | Entered another Materials area 72 | -9/Materials | Devolved, losing 1 slot: Utility x-1 125 | -9/Materials | Discovered new exit (range 5) 127 | -9/Materials | Entered another Materials area 127 | -8/Materials | Devolved, losing 1 slot: Utility x-1 190 | -8/Materials | Discovered new exit (range 4) 193 | -8/Materials | Entered Factory 193 | -7/Factory | Devolved, losing 1 slot: Weapon x-1 305 | -7/Factory | Build established: Mutant 339 | -7/Factory | Core integrity fell below 50% 356 | -7/Factory | Sucked down chute 356 | -7/Factory | Entered Waste 361 | -7/Waste | Spotted C-40 Crusher 362 | -7/Waste | Spotted C-40 Crusher 367 | -7/Waste | Spotted C-40 Crusher 367 | -7/Waste | Spotted C-40 Crusher 371 | -7/Waste | EMP discharged 376 | -7/Waste | Spotted C-40 Crusher 382 | -7/Waste | Discovered new exit (range 10) 387 | -7/Waste | Entered Factory 569 | -7/Factory | Core integrity fell below 20% 581 | -7/Factory | Identified exit to Factory 586 | -7/Factory | Destroyed by S-27 Virus with Autogun Last Messages --------------- 00552_ ALERT: Suspicious activity at Terminal F006. Dispatching Investigation squad. 00557_ K-01 Serf cleans the Fabricator. 00558_ Connecting with Fabricator... 00568_ Triggered Ambush Trap. 00568_ S-27 Virus emerges from a hatch in the floor. 00568_ G-47 Trooper emerges from a hatch in the floor. 00574_ U-05 Engineer destroyed. 00581_ Connecting with Terminal... >>Access(Main) Found 4 level access points to Factory: (176,62) (17,167) (36,123) (166,195) Map updated. >>Access(Emergency) Found 1 emergency access door: (88,88) Map updated. Map ----- +----------------------------------------------------+ | ?????# #?????????????????????????????????????????? | | ###### #?????????????????????????????????????????? | | #?????????????????????????????????????????? | | #?????????????????????????????????????????? | | """ #?????????????????????????????????????????? | | """ #?????????????????????????????????????????? | | """ #?????????##+##???????????????????????????? | | % ########### ###### #????????????????????? | | / #????????????????????? | | ################ #####???????????????????????? | | #????############/#######??????????????????????? | | ###### # #??????????????????????? | | ^ # """" # [ #??????????????????????? | | # """" # ! """ #??????????????????????? | | + """" # """ ! #??????????????????????? | | # """" # ! """ #??????????????????????? | | """# # "T" #??????????????????????? | | """# # #??????????????????????? | | ""#############+######??????????????????????? | | F""#?????# #??????????????????????? | | """#?????# #??????????????????????? | | ###?### #??????????????????????? | | ! ! r/ #??????????????????????? | | ############## s #??????????????????????? | | ?????????????# s s #??????????????????????? | | ?????????????# k s @#??????????????????????? | | ?????????????# #??????????????????????? | | ?????????????# a/??????????????????????? | | ?????????????# # ?????????????????????? | | ?????????????# # ?????????????????????? | | ?????????????# #? ????????????????????? | | ?????????????##########+###? ???????????????????? | | ????????????????????????????? ???????????????????? | | ?????????????????????????????????????????????????? | | ?????????????????????????????????????????????????? | | ?????????????????????????????????????????????????? | | ?????????????????????????????????????????????????? | | ?????????????????????????????????????????????????? | | ?????????????????????????????????????????????????? | | ?????????????????????????????????????????????????? | | ?????????????????????????????????????????????????? | | ?????????????????????????????????????????????????? | | ?????????????????????????????????????????????????? | | ?????????????????????????????????????????????????? | | ?????????????????????????????????????????????????? | | ?????????????????????????????????????????????????? | | ?????????????????????????????????????????????????? | | ?????????????????????????????????????????????????? | | ?????????????????????????????????????????????????? | | ?????????????????????????????????????????????????? | +----------------------------------------------------+ Best States ------------- Heat Dissipation 20 Energy Generation 5 Energy Capacity 100 Matter Stores 300 Matter Capacity 300 Sight Range 16 Terrain Scan Density 10 Evasion (%) 50 Item Schematics ----------------- None Robot Schematics ------------------ None Fabricated ------------ Nothing Alien Tech Used ----------------- None Achievements -------------- None Challenges ------------ Devolution Fragile Parts No Salvage Pure Core Scavenger Simple Hacker Trapped Game ------ Seed GyrokineticThrusterBay Manual? 0 Play Time 00:10:47 Cumulative 278.6 hours Start 2023.03.26 @ 01:55:22 End 2023.03.26 @ 02:03:42 Sessions 1 Manual Loads 0 Difficulty Rogue Special Mode None Game No. 249 Rogue 232 Adventurer 1 Explorer 16 Win Type - Total 16 Types 13/1/0/2/0/0/0/0/0 Lore% 74 Gallery% 80 Achievement% 72 Wizard Run 0 Options --------- ASCII 1 Keyboard 1 Movement Numpad Keybinds 1 Fullscreen 1 Font 18/X11 Map View 76x50 Tactical HUD 1 Map Filters NONE Filters NONE Steam 1 RUN: 10f120a7-c91d-4ace-aeb5-579e05b675a7